fUSD/lending_fUSD_20251206
["ID","MTS","AMOUNT","RATE_DAILY","PERIOD"]
[396501049,1765011358303,-279.38688327,0.00040767,120]
[396501050,1765011358328,-153.66799095,0.000408,60]
[396501051,1765011358354,-159.67748641,0.000409,120]
[396501052,1765011358384,-539.83297833,0.00040998,120]
[396501053,1765011358413,-50000.0,0.00041,41]
[396501054,1765011358441,-409.55181692,0.00041,30]
[396501055,1765011358465,-150.71,0.00041,120]
[396501056,1765011358491,-510.34898603,0.00041,30]
[396501057,1765011358516,-3000.0,0.00041,120]
[396501058,1765011358540,-1608.17772995,0.00041,120]
[396501059,1765011358566,-201.64752161,0.00041,60]
[396501060,1765011358591,-1499.75324291,0.00041,120]
[396501061,1765011358615,-157.64699098,0.00041,120]
[396501062,1765011358639,-1046.0,0.00041,120]
[396501063,1765011358664,-1000.0,0.00041,120]
[396501064,1765011358689,-156.0,0.00041,90]
[396501065,1765011358713,-1000.0,0.00041,120]
[396501066,1765011358738,-1000.0,0.00041,120]
[396501067,1765011358762,-1000.0,0.00041,120]
[396501068,1765011358786,-1000.0,0.00041,120]
[396501069,1765011358810,-451.95206121,0.0004101,38]
[396501070,1765011358834,-616.55043393,0.0004108,30]
[396501071,1765011358859,-751.43,0.00041096,120]
[396501072,1765011358882,-335.4,0.00041096,120]
[396501073,1765011358907,-500.0,0.00041096,120]
[396501074,1765011358935,-500.0,0.00041096,120]
[396501075,1765011358960,-500.0,0.00041096,120]
[396501076,1765011358986,-500.0,0.00041096,120]
[396501077,1765011359014,-1000.0,0.00041136,30]
[396501078,1765011359039,-480.30253659,0.000412,120]
[396501079,1765011359067,-200.5501583,0.000412,120]
[396501080,1765011359091,-4110.64631722,0.00041225,120]
[396501081,1765011359117,-150.0,0.00041228,120]
[396501082,1765011359141,-536.26693599,0.0004133,120]
[396501083,1765011359166,-150.0,0.00041332,120]
[396501084,1765011359191,-475.0,0.0004137,30]
[396501085,1765011359217,-1000.0,0.0004141,30]
[396501086,1765011359243,-1012.55770347,0.00041414,120]
[396501087,1765011359267,-367.35195588,0.0004142,120]
[396501088,1765011359292,-503.66790332,0.000415,120]
[396501089,1765011359316,-475.0,0.00041644,30]
[396501090,1765011359341,-268.24267404,0.00041644,120]
[396501091,1765011359365,-1500.0,0.00041658,30]
[396501092,1765011359390,-1500.0,0.00041658,30]
[396501093,1765011359414,-1500.0,0.00041658,30]
[396501094,1765011359439,-1500.0,0.00041658,30]
[396501095,1765011359464,-1500.0,0.00041658,30]
[396501096,1765011359490,-1500.0,0.00041658,30]
[396501097,1765011359517,-1000.0,0.00041684,30]
[396501098,1765011359544,-738.3891514,0.000418,120]
[396501099,1765011359574,-705.41841961,0.00041816,120]
[396501100,1765011359606,-200.0,0.00041851,120]
[396501101,1765011359641,-160.52905724,0.00041869,30]
[396501102,1765011359670,-10000.0,0.0004189,30]
[396501103,1765011359696,-475.0,0.00041918,30]
[396501104,1765011359721,-1000.0,0.00041958,30]
[396501105,1765011359755,-535.31407988,0.00041999,120]
[396501106,1765011359782,-50000.0,0.00042,42]
[396501107,1765011359806,-4536.87,0.00042,30]
[396501108,1765011359830,-3000.0,0.00042,120]
[396501109,1765011359854,-335.71483594,0.00042,120]
[396501110,1765011359878,-722.8236507,0.00042,120]
[396501111,1765011359902,-568.89984595,0.00042,120]
[396501112,1765011359926,-1223.41697009,0.00042,30]
[396501113,1765011359950,-1258.76599376,0.00042,120]
[396501114,1765011359974,-500.0,0.00042,120]
[396501115,1765011359999,-300.0,0.00042,120]
[396501116,1765011360026,-1000.0,0.00042,120]
[396501117,1765011360055,-2147.27634804,0.00042121,120]
[396501118,1765011360081,-475.0,0.00042192,30]
[396501119,1765011360109,-150.0,0.00042218,120]
[396501120,1765011360135,-1000.0,0.00042232,30]
[396501121,1765011360164,-50000.0,0.00042237,30]
[396501122,1765011360192,-50000.0,0.00042237,31]
[396501123,1765011360223,-50000.0,0.00042237,32]
[396501124,1765011360251,-50000.0,0.00042237,33]
[396501125,1765011360278,-50000.0,0.00042237,34]
[396501126,1765011360305,-50000.0,0.00042237,35]
[396501127,1765011360333,-50000.0,0.00042237,36]
[396501128,1765011360358,-171.00727178,0.00042238,30]
[396501129,1765011360396,-1121.61684901,0.00042378,30]
[396501130,1765011360422,-475.0,0.00042466,30]
[396501131,1765011360450,-50000.0,0.000425,43]
[396501132,1765011360476,-3857.70065095,0.000425,120]
[396501133,1765011360502,-150.0,0.000425,60]
[396501134,1765011360527,-1000.0,0.00042506,30]
[396501135,1765011360555,-475.0,0.0004274,30]
[396501136,1765011360582,-243.54455855,0.0004274,30]
[396501137,1765011360608,-1000.0,0.0004278,30]
[396501138,1765011360636,-1349.61571963,0.000428,120]
[396501139,1765011360662,-200.0,0.00042911,120]
[396501140,1765011360690,-1000.0,0.00043,120]
[396501141,1765011360716,-2325.07344281,0.00043,120]
[396501142,1765011360743,-403.36885831,0.00043,120]
[396501143,1765011360768,-1090.87773532,0.00043,120]
[396501144,1765011360792,-224.73936891,0.00043,120]
[396501145,1765011360817,-1166.41917817,0.00043,120]
[396501146,1765011360841,-839.75149935,0.00043,120]
[396501147,1765011360865,-475.0,0.00043014,30]
[396501148,1765011360897,-204.25,0.00043014,120]
[396501149,1765011361167,-1000.0,0.00043054,30]
[396501150,1765011361199,-1407.27337538,0.000431,120]
[396501151,1765011361227,-150.0,0.00043146,120]
[396501152,1765011361253,-2627.09518325,0.000432,120]
[396501153,1765011361280,-940.3725,0.0004322,30]
[396501154,1765011361307,-475.0,0.00043288,30]
[396501155,1765011361334,-1000.0,0.00043328,30]
[396501156,1765011361362,-5307.57018683,0.00043333,30]
[396501157,1765011361388,-601.0,0.0004355,120]
[396501158,1765011361415,-475.0,0.00043562,30]
[396501159,1765011361441,-1000.0,0.00043562,30]
[396501160,1765011361467,-1119.0,0.00043562,30]
[396501161,1765011361496,-1000.0,0.00043602,30]
[396501162,1765011361522,-2266.17020857,0.000437,120]
[396501163,1765011361548,-500.62366314,0.000438,30]
[396501164,1765011361573,-780.01534343,0.000438,120]
[396501165,1765011361600,-1456.5831621,0.000438,30]
[396501166,1765011361627,-971.54907535,0.000438,120]
[396501167,1765011361658,-399.39051605,0.00043808,120]
[396501168,1765011361685,-475.0,0.00043836,30]
[396501169,1765011361714,-1000.0,0.00043876,30]
[396501170,1765011361743,-200.0,0.00043972,120]
[396501171,1765011361770,-1082.37,0.00043997,120]
[396501172,1765011361798,-151.0,0.00044,120]
[396501173,1765011361824,-186.0,0.00044,120]
[396501174,1765011361852,-1000.0,0.00044,120]
[396501175,1765011361884,-2141.20994558,0.00044,120]
[396501176,1765011361912,-1497.6536688,0.00044,120]
[396501177,1765011361940,-474.19060311,0.00044,120]
[396501178,1765011361967,-508.90135225,0.00044,120]
[396501179,1765011361996,-300.0,0.00044,120]
[396501180,1765011362024,-312.386019,0.00044,57]
[396501181,1765011362056,-475.0,0.0004411,30]
[396501182,1765011362084,-1000.0,0.0004415,30]
[396501183,1765011362112,-158.69955409,0.0004425,120]
[396501184,1765011362139,-1000.0,0.00044424,30]
[396501185,1765011362168,-151.0,0.000445,120]
[396501186,1765011362196,-186.0,0.000445,120]
[396501187,1765011362222,-1431.65859485,0.000445,120]
[396501188,1765011362249,-1097.0,0.00044608,30]
[396501189,1765011362276,-475.0,0.00044658,30]
[396501190,1765011362303,-1000.0,0.00044698,30]
[396501191,1765011362334,-909.41193908,0.00044719,120]
[396501192,1765011362362,-455.98135265,0.000448,120]
[396501193,1765011362390,-2102.2974066,0.0004489,120]
[396501194,1765011362420,-2834.88659824,0.000449,30]
[396501195,1765011362445,-1000.0,0.00044972,30]
[396501196,1765011362474,-50000.0,0.00045,45]
[396501197,1765011362501,-151.0,0.00045,120]
[396501198,1765011362529,-217.72443412,0.00045,120]
[396501199,1765011362559,-1374.01,0.00045,120]
[396501200,1765011362586,-1115.55010153,0.00045,120]
[396501201,1765011362611,-186.0,0.00045,120]
[396501202,1765011362637,-500.0,0.00045,120]
[396501203,1765011362663,-2988.37378582,0.00045,120]
[396501204,1765011362689,-521.44859957,0.00045,120]
[396501205,1765011362715,-3653.54896099,0.00045,120]
[396501206,1765011362742,-1127.02259142,0.00045,32]
[396501207,1765011362769,-722.22186701,0.00045,120]
[396501208,1765011362796,-806.45304361,0.00045,120]
[396501209,1765011362821,-361.86047075,0.00045,120]
[396501210,1765011362848,-1434.67053098,0.00045,120]
[396501211,1765011362877,-1537.20027213,0.00045,120]
[396501212,1765011362904,-6427.81913862,0.00045,60]
[396501213,1765011362933,-1000.0,0.00045,120]
[396501214,1765011362959,-1113.07,0.00045,120]
[396501215,1765011362985,-157.9,0.00045,85]
[396501216,1765011363011,-709.99,0.00045,120]
[396501217,1765011363037,-420.0,0.00045,120]
[396501218,1765011363066,-1686.65075264,0.00045,120]
[396501219,1765011363094,-300.0,0.00045,120]
[396501220,1765011363120,-150.0,0.00045,120]
[396501221,1765011363146,-150.0,0.00045,120]
[396501222,1765011363173,-150.0,0.00045,120]
[396501223,1765011363201,-200.0,0.00045033,120]
[396501224,1765011363230,-475.0,0.00045205,30]
[396501225,1765011363270,-1000.0,0.00045246,30]
[396501226,1765011363301,-151.0,0.000455,120]
[396501227,1765011363330,-186.0,0.000455,120]
[396501228,1765011363357,-1006.96158926,0.000455,120]
[396501229,1765011363385,-1000.0,0.0004552,30]
[396501230,1765011363412,-1266.76722689,0.000457,120]
[396501231,1765011363441,-475.0,0.00045753,30]
[396501232,1765011363469,-1000.0,0.00045794,30]
[396501233,1765011363496,-192.23489421,0.0004589,120]
[396501234,1765011363526,-151.0,0.000459,120]
[396501235,1765011363554,-4536.87,0.00046,30]
[396501236,1765011363580,-186.0,0.00046,120]
[396501237,1765011363607,-500.0,0.00046,120]
[396501238,1765011363635,-194.33120363,0.00046,120]
[396501239,1765011363662,-308.82428461,0.00046,120]
[396501240,1765011363696,-819.08732479,0.00046,120]
[396501241,1765011363724,-1000.0,0.00046,30]
[396501242,1765011363751,-204.64381175,0.00046,30]
[396501243,1765011363779,-2199.56902857,0.00046,120]
[396501244,1765011363807,-997.9956236,0.00046,120]
[396501245,1765011363834,-216.19105958,0.00046,30]
[396501246,1765011363862,-373.09838782,0.00046,120]
[396501247,1765011363890,-1643.07719346,0.00046,90]
[396501248,1765011363918,-620.27591173,0.00046,120]
[396501249,1765011363947,-771.2849507,0.00046,120]
[396501250,1765011363976,-1000.0,0.00046068,30]
[396501251,1765011364004,-200.0,0.00046093,120]
[396501252,1765011364366,-475.0,0.00046301,30]
[396501253,1765011364392,-1000.0,0.00046342,30]
[396501254,1765011364423,-151.0,0.000464,120]
[396501255,1765011364449,-523.56860014,0.000464,120]
[396501256,1765011364476,-453.92004869,0.0004649,120]
[396501257,1765011364504,-186.0,0.000465,120]
[396501258,1765011364530,-700.0,0.0004655,120]
[396501259,1765011364556,-500.0,0.00046575,31]
[396501260,1765011364583,-1000.0,0.00046616,30]
[396501261,1765011364612,-1367.05649494,0.000468,120]
[396501262,1765011364638,-1069.19762138,0.000468,120]
[396501263,1765011364664,-475.0,0.00046849,30]
[396501264,1765011364691,-1000.0,0.0004689,30]
[396501265,1765011364718,-3256.43,0.000469,120]
[396501266,1765011364747,-151.0,0.000469,120]
[396501267,1765011364773,-1471.14648573,0.000469,120]
[396501268,1765011364798,-1097.0,0.00046956,30]
[396501269,1765011364824,-150.0,0.00046964,30]
[396501270,1765011364854,-1361.09025012,0.00046964,30]
[396501271,1765011364879,-209.0,0.0004698,30]
[396501272,1765011364908,-209.0,0.0004698,30]
[396501273,1765011364936,-209.0,0.0004698,30]
[396501274,1765011364964,-1341.71,0.00047,120]
[396501275,1765011364991,-500.0,0.00047,120]
[396501276,1765011365019,-186.0,0.00047,120]
[396501277,1765011365048,-500.0,0.00047,120]
[396501278,1765011365074,-616.00341798,0.00047,30]
[396501279,1765011365103,-185.71859589,0.00047,120]
[396501280,1765011365129,-2551.41123726,0.00047,120]
[396501281,1765011365157,-200.0,0.00047154,120]
[396501282,1765011365183,-1000.0,0.00047164,30]
[396501283,1765011365210,-331.9548124,0.00047203,120]
[396501284,1765011365239,-475.0,0.00047397,30]
[396501285,1765011365265,-151.0,0.000474,120]
[396501286,1765011365292,-186.0,0.000474,120]
[396501287,1765011365318,-1000.0,0.00047438,30]
[396501288,1765011365346,-50000.0,0.000475,48]
[396501289,1765011365372,-544.01861106,0.000475,120]
[396501290,1765011365398,-224.39036596,0.00047682,120]
[396501291,1765011365426,-1000.0,0.00047712,30]
[396501292,1765011365455,-2300.06361747,0.0004789,60]
[396501293,1765011365480,-151.0,0.000479,120]
[396501294,1765011365506,-186.0,0.000479,120]
[396501295,1765011365533,-475.0,0.00047945,30]
[396501296,1765011365560,-1000.0,0.00047985,30]
[396501297,1765011365600,-500.0,0.00048,120]
[396501298,1765011365630,-4215.5976639,0.00048,120]
[396501299,1765011365659,-267.42887194,0.00048,120]
[396501300,1765011365688,-758.61572299,0.00048,120]
[396501301,1765011365715,-1621.60050272,0.00048,120]
[396501302,1765011365742,-459.7894284,0.00048,120]
[396501303,1765011365769,-1818.57125934,0.00048,120]
[396501304,1765011365795,-994.67210024,0.00048,120]
[396501305,1765011365823,-598.66268907,0.00048,120]
[396501306,1765011365850,-163.2596583,0.00048,120]
[396501307,1765011365876,-376.25291642,0.00048,120]
[396501308,1765011365903,-183.0699366,0.00048,120]
[396501309,1765011365930,-771.2849507,0.00048,120]
[396501310,1765011365957,-300.0,0.00048,120]
[396501311,1765011365985,-700.0,0.00048,120]
[396501312,1765011366017,-500.0,0.00048,120]
[396501313,1765011366048,-150.0,0.00048,120]
[396501314,1765011366076,-150.0,0.00048,120]
[396501315,1765011366107,-150.0,0.00048,120]
[396501316,1765011366138,-200.0,0.00048215,120]
[396501317,1765011366165,-917.03034311,0.0004825,120]
[396501318,1765011366194,-1000.0,0.00048259,30]
[396501319,1765011366223,-151.0,0.000484,120]
[396501320,1765011366251,-186.0,0.000484,120]
[396501321,1765011366277,-475.0,0.00048493,30]
[396501322,1765011366304,-214.93603045,0.000485,120]
[396501323,1765011366331,-1000.0,0.00048533,30]
[396501324,1765011366358,-626.56717999,0.000487,120]
[396501325,1765011366385,-1460.62624555,0.000488,120]
[396501326,1765011366413,-150.0,0.00048806,120]
[396501327,1765011366440,-1000.0,0.00048807,30]
[396501328,1765011366467,-1082.37,0.00048832,120]
[396501329,1765011366493,-1882.70422405,0.00048875,60]
[396501330,1765011366521,-151.0,0.000489,120]
[396501331,1765011366547,-186.0,0.000489,120]
[396501332,1765011366574,-690.20576213,0.000489,120]
[396501333,1765011366601,-5250.6891616,0.000489,120]
[396501334,1765011366628,-215.0,0.0004899,30]
[396501335,1765011366656,-209.0,0.0004899,30]
[396501336,1765011366685,-209.0,0.0004899,30]
[396501337,1765011366713,-209.0,0.0004899,30]
[396501338,1765011366741,-209.0,0.0004899,30]
[396501339,1765011366768,-209.0,0.0004899,30]
[396501340,1765011366797,-500.0,0.00049,120]
[396501341,1765011366824,-1098.51386694,0.00049,120]
[396501342,1765011366851,-2670.0,0.00049,120]
[396501343,1765011366877,-789.61548434,0.00049,30]
[396501344,1765011366903,-526.80616203,0.00049,30]
[396501345,1765011366929,-1514.50154333,0.00049,120]
[396501346,1765011366955,-380.54930957,0.00049,120]
[396501347,1765011366982,-1020.7672202,0.00049,120]
[396501348,1765011367009,-642.26455174,0.00049,30]
[396501349,1765011367034,-1691.94351399,0.00049,120]
[396501350,1765011367063,-475.0,0.00049041,30]
[396501351,1765011367089,-1000.0,0.00049081,30]
[396501352,1765011367116,-235.256136,0.00049275,120]
[396501353,1765011367141,-151.0,0.000493,120]
[396501354,1765011367167,-1828.99281324,0.00049315,120]
[396501355,1765011367459,-162.19169879,0.00049315,60]
[396501356,1765011367489,-1236.38,0.00049315,120]
[396501357,1765011367518,-1236.38,0.00049315,120]
[396501358,1765011367547,-1236.38,0.00049315,120]
[396501359,1765011367574,-1236.38,0.00049315,120]
[396501360,1765011367603,-1236.38,0.00049315,120]
[396501361,1765011367630,-1236.38,0.00049315,120]
[396501362,1765011367667,-1236.38,0.00049315,120]
[396501363,1765011367695,-1236.38,0.00049315,120]
[396501364,1765011367724,-1236.38,0.00049315,120]
[396501365,1765011367752,-1236.38,0.00049315,120]
[396501366,1765011367780,-1236.38,0.00049315,120]
[396501367,1765011367808,-1236.38,0.00049315,120]
[396501368,1765011367834,-1236.38,0.00049315,120]
[396501369,1765011367859,-1236.38,0.00049315,120]
[396501370,1765011367887,-1236.38,0.00049315,120]
[396501371,1765011367913,-1236.38,0.00049315,120]
[396501372,1765011367940,-1236.38,0.00049315,120]
[396501373,1765011367965,-1236.38,0.00049315,120]
[396501374,1765011367990,-1236.38,0.00049315,120]
[396501375,1765011368015,-1236.38,0.00049315,120]
[396501376,1765011368041,-1236.38,0.00049315,120]
[396501377,1765011368075,-1236.38,0.00049315,120]
[396501378,1765011368103,-1236.38,0.00049315,120]
[396501379,1765011368129,-1236.45370281,0.00049315,120]
[396501380,1765011368156,-697.62,0.00049315,120]
[396501381,1765011368184,-697.62,0.00049315,120]
[396501382,1765011368210,-697.62,0.00049315,120]
[396501383,1765011368235,-697.62,0.00049315,120]
[396501384,1765011368260,-697.62,0.00049315,120]
[396501385,1765011368286,-697.62,0.00049315,120]
[396501386,1765011368311,-697.62,0.00049315,120]
[396501387,1765011368337,-697.62,0.00049315,120]
[396501388,1765011368363,-697.62,0.00049315,120]
[396501389,1765011368388,-697.62,0.00049315,120]
[396501390,1765011368414,-697.62,0.00049315,120]
[396501391,1765011368441,-697.62,0.00049315,120]
[396501392,1765011368466,-697.62,0.00049315,120]
[396501393,1765011368491,-697.62,0.00049315,120]
[396501394,1765011368517,-697.62,0.00049315,120]
[396501395,1765011368543,-697.62,0.00049315,120]
[396501396,1765011368568,-697.62,0.00049315,120]
[396501397,1765011368594,-697.62,0.00049315,120]
[396501398,1765011368620,-697.62,0.00049315,120]
[396501399,1765011368647,-697.62,0.00049315,120]
[396501400,1765011368677,-697.62,0.00049315,120]
[396501401,1765011368706,-697.62,0.00049315,120]
[396501402,1765011368733,-697.62,0.00049315,120]
[396501403,1765011368762,-697.80202584,0.00049315,120]
[396501404,1765011368789,-640.23572269,0.00049315,120]
[396501405,1765011368815,-1000.0,0.00049355,30]
[396501406,1765011368843,-186.0,0.000494,120]
[396501407,1765011368868,-437.7129744,0.000494,120]
[396501408,1765011368896,-1097.0,0.00049427,30]
[396501409,1765011368921,-974.92934779,0.00049452,110]
[396501410,1765011368951,-1181.19728167,0.00049452,110]
[396501411,1765011368978,-551.47091385,0.000495,120]
[396501412,1765011369004,-475.0,0.00049589,30]
[396501413,1765011369032,-1000.0,0.00049629,30]
[396501414,1765011369064,-151.0,0.000498,120]
[396501415,1765011369092,-1277.74868488,0.000498,30]
[396501416,1765011369117,-4188.97383987,0.000498,120]
[396501417,1765011369143,-2139.71337733,0.0004986,68]
[396501418,1765011369169,-460.49737603,0.00049885,120]
[396501419,1765011369197,-186.0,0.000499,120]
[396501420,1765011369223,-1000.0,0.00049903,30]
[396501421,1765011369248,-2540.48241982,0.00049999,120]
[396501422,1765011369275,-50000.0,0.0005,50]
[396501423,1765011369301,-150.0,0.0005,40]
[396501424,1765011369326,-499.99999901,0.0005,120]
[396501425,1765011369350,-234.21,0.0005,120]
[396501426,1765011369375,-90854.78451922,0.0005,120]
[396501427,1765011369399,-2576.58065927,0.0005,120]
[396501428,1765011369425,-4536.87,0.0005,30]
[396501429,1765011369454,-1374.01,0.0005,120]
[396501430,1765011369479,-500.0,0.0005,120]
[396501431,1765011369505,-480.30253659,0.0005,30]
[396501432,1765011369529,-150.0,0.0005,120]
[396501433,1765011369554,-222.0,0.0005,120]
[396501434,1765011369579,-172.72630873,0.0005,120]
[396501435,1765011369604,-1865.40079057,0.0005,120]
[396501436,1765011369630,-5987.93155533,0.0005,120]
[396501437,1765011369655,-3288.08063132,0.0005,120]
[396501438,1765011369680,-226.66522426,0.0005,120]
[396501439,1765011369705,-2956.06556375,0.0005,120]
[396501440,1765011369729,-561.2014744,0.0005,120]
[396501441,1765011369754,-1471.51102418,0.0005,120]
[396501442,1765011369778,-1086.93185569,0.0005,120]
[396501443,1765011369803,-225.51573021,0.0005,120]
[396501444,1765011369827,-165.42724107,0.0005,120]
[396501445,1765011369852,-500.0,0.0005,30]
[396501446,1765011369876,-522.63528476,0.0005,120]
[396501447,1765011369901,-499.69733903,0.0005,120]
[396501448,1765011369927,-200.0,0.0005,120]
[396501449,1765011369952,-903.60473736,0.0005,30]
[396501450,1765011369977,-1426.18787049,0.0005,120]
[396501451,1765011370003,-1000.0,0.0005,120]
[396501452,1765011370029,-189.3202904,0.0005,120]
[396501453,1765011370054,-300.0,0.0005,120]
[396501454,1765011370084,-1113.07,0.0005,120]
[396501455,1765011370111,-709.99,0.0005,120]
[396501456,1765011370138,-208.63024005,0.0005,120]
[396501457,1765011370348,-476.51292621,0.0005,120]
[396501458,1765011370375,-458.41899416,0.0005,120]
[396501459,1765011370404,-9399.71641983,0.0005,120]
[396501460,1765011370431,-1141.78446905,0.0005,120]
[396501461,1765011370458,-475.0,0.00050137,30]
[396501462,1765011370484,-1000.0,0.00050177,30]
[396501463,1765011370511,-150.0,0.00050266,120]
[396501464,1765011370538,-151.0,0.000503,120]
[396501465,1765011370564,-186.0,0.000504,120]
[396501466,1765011370590,-1000.0,0.00050451,30]
[396501467,1765011370617,-1310.08584734,0.000505,120]
[396501468,1765011370645,-475.0,0.00050685,30]
[396501469,1765011370672,-1000.0,0.00050725,30]
[396501470,1765011370699,-151.0,0.000508,120]
[396501471,1765011370725,-496.29967616,0.000508,120]
[396501472,1765011370752,-186.0,0.000509,120]
[396501473,1765011370778,-782.55357333,0.000509,120]
[396501474,1765011370804,-1000.0,0.00050999,30]
[396501475,1765011370831,-150.0,0.00051,40]
[396501476,1765011370857,-1383.55894485,0.00051,120]
[396501477,1765011370882,-1542.5699014,0.00051,120]
[396501478,1765011370908,-475.0,0.00051233,30]
[396501479,1765011370936,-1000.0,0.00051273,30]
[396501480,1765011370962,-151.0,0.000513,120]
[396501481,1765011370989,-186.0,0.000514,120]
[396501482,1765011371015,-1000.0,0.00051547,30]
[396501483,1765011371041,-410.19731571,0.000517,120]
[396501484,1765011371070,-475.0,0.00051781,30]
[396501485,1765011371095,-151.0,0.000518,120]
[396501486,1765011371122,-1000.0,0.00051821,30]
[396501487,1765011371148,-186.0,0.000519,120]
[396501488,1765011371174,-350.000198,0.00051954,90]
[396501489,1765011371200,-200.0,0.00052,40]
[396501490,1765011371226,-3397.37616401,0.00052,120]
[396501491,1765011371253,-300.0,0.00052,120]
[396501492,1765011371279,-1097.0,0.00052029,30]
[396501493,1765011371306,-500.0,0.00052055,33]
[396501494,1765011373703,190.21305264,0.000399,120]
[396501495,1765011374370,1344.5,0.00050752,120]
[396501496,1765011374466,1344.5,0.00049886,120]
[396501497,1765011374540,1344.5,0.0004902,120]
[396501498,1765011374766,509.51129037,0.00052055,30]
[396501499,1765011374804,500.0,0.00052055,30]
[396501500,1765011374838,151.0,0.00052055,30]
[396501501,1765011374874,1344.5,0.00048154,120]
[396501502,1765011374961,1344.5,0.00047288,120]
[396501503,1765011375002,500.0,0.00052055,30]
[396501504,1765011375039,151.0,0.00052055,30]
[396501505,1765011375340,500.0,0.00052055,30]
[396501506,1765011375408,151.0,0.00052055,30]
[396501507,1765011375649,500.0,0.00052055,30]
[396501508,1765011375688,151.0,0.00052055,30]
[396501509,1765011375722,190.21305263,0.000399,120]
[396501510,1765011375762,500.0,0.00052055,30]
[396501511,1765011375798,151.0,0.00052055,30]
[396501512,1765011375854,151.0,0.00052055,30]
[396501513,1765011375890,500.0,0.00052055,30]
[396501514,1765011375975,151.0,0.00052055,30]
[396501515,1765011376009,500.0,0.00052055,30]
[396501516,1765011376177,151.0,0.00052055,30]
[396501517,1765011376210,500.0,0.00052055,30]
[396501518,1765011376284,151.0,0.00052055,30]
[396501519,1765011376318,500.0,0.00052055,30]
[396501520,1765011376354,193.52127997,0.00052055,30]
[396501521,1765011376450,500.0,0.00052055,30]
[396501522,1765011376735,151.0,0.00052055,30]
[396501523,1765011376808,500.0,0.00052055,30]
[396501524,1765011376841,151.0,0.00052055,30]
[396501525,1765011376950,190.21305263,0.000399,120]
[396501526,1765011377452,300.061656,0.00047497,120]
[396501527,1765011377493,151.0,0.00052055,30]
[396501528,1765011377535,500.0,0.00052055,30]
[396501529,1765011377630,160.0,0.00052055,30]
[396501530,1765011377731,600.0,0.00052055,30]
[396501531,1765011377807,250.0,0.00052055,30]
[396501532,1765011377838,156.587,0.00052055,30]
[396501533,1765011377875,500.0,0.00052055,30]
[396501534,1765011377910,160.0,0.00052055,30]
[396501535,1765011377952,600.0,0.00052055,30]
[396501536,1765011378010,250.0,0.00052055,30]
[396501537,1765011378042,162.380719,0.00052055,30]
[396501538,1765011378093,500.0,0.00052055,30]
[396501539,1765011378127,160.0,0.00052055,30]
[396501540,1765011378168,500.0,0.00052055,30]
[396501541,1765011378200,600.0,0.00052055,30]
[396501542,1765011378245,250.0,0.00052055,30]
[396501543,1765011378290,168.3888056,0.00052055,30]
[396501544,1765011378422,160.0,0.00052055,30]
[396501545,1765011378461,500.0,0.00052055,30]
[396501546,1765011378494,600.0,0.00052055,30]
[396501547,1765011378542,174.61919141,0.00052055,30]
[396501548,1765011378579,250.0,0.00052055,30]